{"text_format":"1","workbook":"xlsx","n_sheets":13,"sheets":["実施状況報告書（様式第21号）","1集合写真（様式第18号）","2場所毎の作業写真（様式第18号別添）","3金銭出納簿（様式第19号）","4ﾓﾆﾀﾘﾝｸﾞ結果報告書(様式第20号)","5実施状況整理票（様式21別紙１）","6効果ﾁｪｯｸｼｰﾄ(様式21号別紙２)","7関係人口創出維持タイプの参加者名簿","8クロスコンプライアンスチェック(様式第13号)","9活動記録総括表(参考様式第12号)","森林整備実績図","森林整備区域管理票１（写真撮影位置図）","森林整備区域管理票２（現場の整備状況等）"],"not_rendered":{"charts":0,"images":2,"macros":1,"external_links":0,"defined_names":19,"comments":4,"pivot_tables":0},"unopened":[],"bounds":{"document_bytes":16777216,"sheet_cells":100000,"rows_first":2000,"rows_last":500,"rows_between":2000,"halvings":0,"cell_chars":16384,"cell_head_chars":4096},"cells_cut":0,"cells_raw":0,"read":"whole","date_system":"1900"}

{"sheet":"実施状況報告書（様式第21号）","index":0,"n_rows":43,"n_cols":14,"rows_kept":43,"cut":false,"hidden":false,"merged":[[5,0,5,13],[4,0,4,13],[6,0,6,13],[17,0,17,13],[7,6,7,13],[13,0,15,13],[11,0,11,13],[8,6,8,13],[9,6,9,13]]}
["（別紙３　様式第21号）"]
[null,null,null,null,null,null,null,null,null,null,"第",null,null,"号"]
[null,null,null,null,null,null,null,"令和",7,"年",2,"月",14,"日"]
[]
["ひょうご森林林業協同組合連合会"]
["代表理事　新岡　史朗　様"]
[]
[null,null,null,null,"活動組織名","："]
[null,null,null,null,"役職","："]
[null,null,null,null,"氏名","："]
[]
["令和６年度　森林・山村多面的機能発揮対策交付金に係る実施状況報告書"]
[]
["　令和6年度の実施状況について、森林・山村多面的機能発揮対策実施要領（平成25年５月16日付け25林整森第74号林野庁長官通知）別紙３の第５の８に基づき、下記の関係書類を添えて報告する。"]
[]
[]
[]
["記"]
[]
["１　令和6年度　森林・山村多面的機能発揮対策交付金（活動記録兼作業写真整理帳）"]
["（別紙３　様式第18号）"]
[]
["２　作業写真整理帳"]
["（別紙３　様式第18号別添）"]
[]
["３　令和6年度　森林・山村多面的機能発揮対策交付金（金銭出納簿）"]
["（別紙３　様式第19号）"]
[]
["４　令和6年度　モニタリング結果報告書（別紙３　様式第20号）"]
[]
["５　令和6年度　実施状況整理票（別紙１）"]
[]
["６　令和6年度　森林・山村多面的機能発揮に対する効果チェックシート（別紙２）"]
[]
["７　令和6年度　関係人口創出・維持タイプの参加者名簿"]
[]
["８　環境負荷軽減のクロスコンプライアンスチェックシート（別紙３　様式第13号）"]
[]
["９　活動記録総括表（参考様式第12号）"]
["　　※エクセルデータを兵庫県農林水産部治山課（下記メールアドレス宛）に提出すること。"]
["　　　chisanka@pref.hyogo.lg.jp"]
[]
["（※精算払いがある場合は業務方法書の別記様式第1号も併せて添付すること。）"]

{"sheet":"1集合写真（様式第18号）","index":1,"n_rows":55,"n_cols":23,"rows_kept":55,"cut":false,"hidden":false,"merged":[[6,5,6,6],[16,5,16,6],[26,5,26,6],[36,5,36,6],[27,1,34,10],[17,1,24,10],[27,12,27,14],[27,15,27,24],[28,12,34,14],[31,15,34,15],[31,16,31,20],[33,23,33,24],[30,15,30,20],[30,21,30,24],[32,16,32,20],[33,16,33,20],[34,16,34,20],[29,15,29,20],[29,21,29,24],[17,12,17,14],[17,15,17,24],[18,12,24,14],[21,15,24,15],[21,16,21,20],[22,16,22,20],[23,16,23,20],[23,23,23,24],[24,16,24,20],[18,15,18,20],[18,21,18,24],[19,15,19,20],[19,21,19,24],[45,15,45,20],[37,1,44,10],[37,12,37,14],[37,15,37,24],[38,12,44,14],[41,15,44,15],[41,16,41,20],[44,16,44,20],[43,23,43,24],[42,16,42,20],[43,16,43,20],[38,15,38,20],[38,21,38,24],[39,15,39,20],[39,21,39,24],[40,15,40,20],[8,21,8,24],[10,15,10,20],[9,15,9,20],[8,15,8,20],[0,1,0,7],[2,1,2,24],[4,15,4,17],[4,18,4,24],[5,15,5,17],[5,18,5,24],[7,1,14,10],[7,12,7,14],[7,15,7,24],[8,12,14,14],[11,15,14,15],[9,21,9,24],[40,21,40,24],[10,21,10,24],[20,15,20,20],[20,21,20,24],[28,15,28,20],[28,21,28,24],[11,16,11,20],[12,16,12,20],[13,16,13,20],[13,23,13,24],[14,16,14,20]]}
[null,"（別紙３　様式第18号）"]
[null,"令和6年度　森林・山村多面的機能発揮対策交付金"]
[null,"活動記録兼作業写真整理帳（活動日毎の集合写真）"]
[]
[null,null,null,null,null,null,null,null,null,null,null,null,null,null,null,"№："]
[null,null,null,null,null,null,null,null,null,null,null,null,null,null,null,"組織名：",null,null,{"$f":"'実施状況報告書（様式第21号）'!G8","v":0}]
[null,null,null,null,"　日　付：","令和6年",null,null,"月",null,"日"]
[null,"ダブルクリックで写真を選択",null,null,null,null,null,null,null,null,null,null,"活動項目"]
[null,null,null,null,null,null,null,null,null,null,null,null,"取組内容",null,null,"活動場所"]
[null,null,null,null,null,null,null,null,null,null,null,null,null,null,null,"活動内容"]
[null,null,null,null,null,null,null,null,null,null,null,null,null,null,null,"実施時間"]
[null,null,null,null,null,null,null,null,null,null,null,null,null,null,null,"活動参加人数","構成員",null,null,null,null,null,"名"]
[null,null,null,null,null,null,null,null,null,null,null,null,null,null,null,null,"構成員以外",null,null,null,null,null,"名"]
[null,null,null,null,null,null,null,null,null,null,null,null,null,null,null,null,"合　計",null,null,null,null,{"$f":"SUM(V12:V13)","v":0},"名"]
[null,null,null,null,null,null,null,null,null,null,null,null,null,null,null,null,"うち地域外関係者",null,null,null,null,null,"名"]
[]
[null,null,null,null,"　日　付：","令和6年",null,null,"月",null,"日"]
[null,"ダブルクリックで写真を選択",null,null,null,null,null,null,null,null,null,null,"活動項目"]
[null,null,null,null,null,null,null,null,null,null,null,null,"取組内容",null,null,"活動場所"]
[null,null,null,null,null,null,null,null,null,null,null,null,null,null,null,"活動内容"]
[null,null,null,null,null,null,null,null,null,null,null,null,null,null,null,"実施時間"]
[null,null,null,null,null,null,null,null,null,null,null,null,null,null,null,"活動参加人数","構成員",null,null,null,null,null,"名"]
[null,null,null,null,null,null,null,null,null,null,null,null,null,null,null,null,"構成員以外",null,null,null,null,null,"名"]
[null,null,null,null,null,null,null,null,null,null,null,null,null,null,null,null,"合　計",null,null,null,null,{"$f":"SUM(V22:V23)","v":0},"名"]
[null,null,null,null,null,null,null,null,null,null,null,null,null,null,null,null,"うち地域外関係者",null,null,null,null,null,"名"]
[]
[null,null,null,null,"　日　付：","令和6年",null,null,"月",null,"日"]
[null,"ダブルクリックで写真を選択",null,null,null,null,null,null,null,null,null,null,"活動項目"]
[null,null,null,null,null,null,null,null,null,null,null,null,"取組内容",null,null,"活動場所"]
[null,null,null,null,null,null,null,null,null,null,null,null,null,null,null,"活動内容"]
[null,null,null,null,null,null,null,null,null,null,null,null,null,null,null,"実施時間"]
[null,null,null,null,null,null,null,null,null,null,null,null,null,null,null,"活動参加人数","構成員",null,null,null,null,null,"名"]
[null,null,null,null,null,null,null,null,null,null,null,null,null,null,null,null,"構成員以外",null,null,null,null,null,"名"]
[null,null,null,null,null,null,null,null,null,null,null,null,null,null,null,null,"合　計",null,null,null,null,{"$f":"SUM(V32:V33)","v":0},"名"]
[null,null,null,null,null,null,null,null,null,null,null,null,null,null,null,null,"うち地域外関係者",null,null,null,null,null,"名"]
[]
[null,null,null,null,"　日　付：","令和6年",null,null,"月",null,"日"]
[null,"ダブルクリックで写真を選択",null,null,null,null,null,null,null,null,null,null,"活動項目"]
[null,null,null,null,null,null,null,null,null,null,null,null,"取組内容",null,null,"活動場所"]
[null,null,null,null,null,null,null,null,null,null,null,null,null,null,null,"活動内容"]
[null,null,null,null,null,null,null,null,null,null,null,null,null,null,null,"実施時間"]
[null,null,null,null,null,null,null,null,null,null,null,null,null,null,null,"活動参加人数","構成員",null,null,null,null,null,"名"]
[null,null,null,null,null,null,null,null,null,null,null,null,null,null,null,null,"構成員以外",null,null,null,null,null,"名"]
[null,null,null,null,null,null,null,null,null,null,null,null,null,null,null,null,"合　計",null,null,null,null,{"$f":"SUM(V42:V43)","v":0},"名"]
[null,null,null,null,null,null,null,null,null,null,null,null,null,null,null,null,"うち地域外関係者",null,null,null,null,null,"名"]
[null,"活動項目"]
[null,"①：活動推進費"]
[null,"②：地域環境保全タイプ（里山林保全）"]
[null,"③：地域環境保全タイプ（侵入竹除去・竹林整備）"]
[null,"④：森林資源利用タイプ　　　"]
[null,"⑤：森林機能強化タイプ　"]
[null,"⑥：関係人口創出・維持タイプ"]
[]
[null,"撮影者含む"]
[null,"　　　　　"]

{"sheet":"2場所毎の作業写真（様式第18号別添）","index":2,"n_rows":43,"n_cols":20,"rows_kept":43,"cut":false,"hidden":false,"merged":[[16,4,16,6],[26,4,26,6],[0,1,0,7],[1,1,1,25],[2,16,2,18],[2,19,2,25],[3,16,3,18],[3,19,3,25],[4,16,4,18],[4,19,4,25],[5,1,5,10],[6,1,6,3],[6,4,6,6],[8,19,8,25],[9,16,9,18],[9,19,9,25],[10,16,10,18],[10,19,10,25],[21,16,21,18],[11,16,11,18],[15,1,15,10],[16,1,16,3],[17,1,23,10],[17,12,17,15],[17,16,17,25],[18,12,23,15],[18,16,18,18],[7,1,13,10],[7,12,7,15],[7,16,7,25],[8,12,9,15],[8,16,8,18],[18,19,18,25],[19,16,19,18],[19,19,19,25],[20,16,20,18],[20,19,20,25],[25,1,25,10],[26,1,26,3],[27,1,33,10],[34,1,34,10],[41,1,41,25],[42,1,42,25],[27,16,27,25],[28,12,33,15],[28,16,28,18],[28,19,28,25],[29,16,29,18],[29,19,29,25],[30,16,30,18],[30,19,30,25],[31,16,31,18],[27,12,27,15]]}
[null,"（別紙３　様式第18号　別添）"]
[null,"作業写真整理帳（活動場所毎の作業写真）"]
[null,null,null,null,null,null,null,null,null,null,null,null,null,null,null,null,"№："]
[null,null,null,null,null,null,null,null,null,null,null,null,null,null,null,null,"組織名：",null,null,{"$f":"'実施状況報告書（様式第21号）'!G8","v":0}]
[]
[null,"作業前"]
[null,null,null,null,"令和6年",null,null,null,"月",null,"日"]
[null,"ダブルクリックで写真を選択",null,null,null,null,null,null,null,null,null,null,"活動項目"]
[null,null,null,null,null,null,null,null,null,null,null,null,"取組内容",null,null,null,"活動場所"]
[null,null,null,null,null,null,null,null,null,null,null,null,null,null,null,null,"活動内容"]
[]
[]
[]
[]
[]
[null,"作業中"]
[null,null,null,null,"令和6年",null,null,null,"月",null,"日"]
[null,"ダブルクリックで写真を選択"]
[]
[]
[]
[]
[]
[]
[]
[null,"作業後"]
[null,null,null,null,"令和6年",null,null,null,"月",null,"日"]
[null,"ダブルクリックで写真を選択"]
[]
[]
[]
[]
[]
[]
[null,"活動項目"]
[null,"①：活動推進費"]
[null,"②：地域環境保全タイプ（里山林保全）"]
[null,"③：地域環境保全タイプ（侵入竹除去・竹林整備）"]
[null,"④：森林資源利用タイプ　　　"]
[null,"⑤：森林機能強化タイプ　"]
[null,"⑥：関係人口創出・維持タイプ"]
[null,"※活動前、活動中、活動後の状況について、それぞれ撮影すること。"]
[null,"※写真撮影は作業起番ごとに１箇所以上で撮影すること。\n　　ただし、作業起番面積が1ha以上の場合は2箇所以上とする。"]

{"sheet":"3金銭出納簿（様式第19号）","index":3,"n_rows":428,"n_cols":21,"rows_kept":428,"cut":false,"hidden":false,"merged":[[427,9,427,11],[2,1,4,12],[44,15,44,17],[45,2,45,4],[45,5,45,6],[45,7,45,9],[45,11,45,13],[45,15,45,17],[44,1,45,1],[44,2,44,4],[44,5,44,6],[44,7,44,9],[44,11,44,13],[38,3,38,9],[39,3,39,9],[40,1,40,9],[41,7,41,9],[43,14,43,15],[33,3,33,9],[34,3,34,9],[35,3,35,9],[36,3,36,9],[37,3,37,9],[28,3,28,9],[29,3,29,9],[30,3,30,9],[31,3,31,9],[32,3,32,9],[23,3,23,9],[24,3,24,9],[25,3,25,9],[26,3,26,9],[27,3,27,9],[18,3,18,9],[19,3,19,9],[20,3,20,9],[21,3,21,9],[22,3,22,9],[13,3,13,9],[14,3,14,9],[15,3,15,9],[16,3,16,9],[17,3,17,9],[8,3,8,9],[9,3,9,9],[10,3,10,9],[11,3,11,9],[12,3,12,9],[6,18,7,18],[6,19,7,19],[6,20,7,20],[6,21,7,21],[6,22,7,22],[1,1,1,3],[6,3,7,9],[6,13,6,16],[6,17,7,17],[6,12,7,12],[6,1,7,1],[6,2,7,2],[6,10,7,10],[6,11,7,11]]}
[null,"（別紙３ 様式第19号）"]
[]
[null,"令和6年度森林・山村多面的機能発揮対策交付金（金銭出納簿）"]
[]
[]
[]
[null,"日付\n（通帳）","タイプ","内容",null,null,null,null,null,null,"収入\n交付金＋支援金\n（円）","収入\n(自己資金等)\n（円）","立替\n(借入金等)\n（円）","支出（円）",null,null,null,"資機材購入費のうち交付金充当額","領収書等\n番号","活動実施日\n（領収日）","備　　考\n（財産の保管場所）"]
[null,null,null,null,null,null,null,null,null,null,null,null,null,"人件費","委託費","その他","資機材の\n購入等"]
[]
[]
[]
[]
[]
[]
[]
[]
[]
[]
[]
[]
[]
[]
[]
[]
[]
[]
[]
[]
[]
[]
[]
[]
[]
[]
[]
[]
[]
[]
[]
[]
[null,null,null,null,null,null,null,null,null,null,{"$f":"SUM(K9:K40)","v":0},0,0,0,0,0,0,{"$f":"SUM(R9:R40)","v":0}]
[null,null,null,null,null,null,null,"資機材以外交付金等",null,null,{"$f":"K41-R41","v":0},null,"支出計",{"$f":"SUM(N41:Q41)","v":0},null,null,{"$f":"SUMIF(C9:Q40,\"⑦\",Q9:Q40)","v":0},{"$f":"ROUNDDOWN(Q42/2,-3)","v":0},"1/2"]
[null,null,null,null,null,null,null,null,null,null,null,"自己負担額",{"$f":"N42-K41","v":0},null,null,null,{"$f":"SUMIF(C9:Q40,\"⑧\",Q9:Q40)","v":0},{"$f":"ROUNDDOWN(Q43/3,-3)","v":0},"1/3"]
[null,null,null,null,null,null,null,null,null,null,null,null,null,null,"資機材の自己負担",null,{"$f":"Q41-R41","v":0},"取組に対する負担",{"$f":"M43-Q44","v":0}]
[null,"タイプ毎\n支出","活動推進費",null,null,{"$f":"SUMIF(C9:C40,\"①\",N9:N40)+SUMIF(C9:C40,\"①\",O9:O40)+SUMIF(C9:C40,\"①\",P9:P40)","v":0},null,"地域環境保全（里山林）",null,null,{"$f":"SUMIF(C9:C40,\"②\",N9:N40)+SUMIF(C9:C40,\"②\",O9:O40)+SUMIF(C9:C40,\"②\",P9:P40)","v":0},"地域環境保全（侵入竹）",null,null,{"$f":"SUMIF(C9:C40,\"③\",N9:N40)+SUMIF(C9:C40,\"③\",O9:O40)+SUMIF(C9:C40,\"③\",P9:P40)","v":0},"森林資源利用",null,null,{"$f":"SUMIF(C9:C40,\"④\",N9:N40)+SUMIF(C9:C40,\"④\",O9:O40)+SUMIF(C9:C40,\"④\",P9:P40)","v":0}]
[null,null,"森林機能強化",null,null,{"$f":"SUMIF($C$9:$C$40,\"⑤\",$N$9:$N$40)+SUMIF($C$9:$C$40,\"⑤\",$O$9:$O$40)+SUMIF($C$9:$C$40,\"⑤\",$P$9:$P$40)","v":0},null,"関係人口創出・維持",null,null,{"$f":"SUMIF($C$9:$C$40,\"⑥\",$N$9:$N$40)+SUMIF($C$9:$C$40,\"⑥\",$O$9:$O$40)+SUMIF($C$9:$C$40,\"⑥\",$P$9:$P$40)","v":0},"資機材・施設の整備（1/2）",null,null,{"$f":"SUMIF(C9:C40,\"⑦\",Q9:Q40)","v":0},"資機材・施設の整備（1/3）",null,null,{"$f":"SUMIF(C9:C40,\"⑧\",Q9:Q40)","v":0}]
[]
[]
[]
[]
[]
[]
[]
[]
[]
[]
[]
[]
[]
[]
[]
[]
[]
[]
[]
[]
[]
[]
[]
[]
[]
[]
[]
[]
[]
[]
[]
[]
[]
[]
[]
[]
[]
[]
[]
[]
[]
[]
[]
[]
[]
[]
[]
[]
[]
[]
[]
[]
[]
[]
[]
[]
[]
[]
[]
[]
[]
[]
[]
[]
[]
[]
[]
[]
[]
[]
[]
[]
[]
[]
[]
[]
[]
[]
[]
[]
[]
[]
[]
[]
[]
[]
[]
[]
[]
[]
[]
[]
[]
[]
[]
[]
[]
[]
[]
[]
[]
[]
[]
[]
[]
[]
[]
[]
[]
[]
[]
[]
[]
[]
[]
[]
[]
[]
[]
[]
[]
[]
[]
[]
[]
[]
[]
[]
[]
[]
[]
[]
[]
[]
[]
[]
[]
[]
[]
[]
[]
[]
[]
[]
[]
[]
[]
[]
[]
[]
[]
[]
[]
[]
[]
[]
[]
[]
[]
[]
[]
[]
[]
[]
[]
[]
[]
[]
[]
[]
[]
[]
[]
[]
[]
[]
[]
[]
[]
[]
[]
[]
[]
[]
[]
[]
[]
[]
[]
[]
[]
[]
[]
[]
[]
[]
[]
[]
[]
[]
[]
[]
[]
[]
[]
[]
[]
[]
[]
[]
[]
[]
[]
[]
[]
[]
[]
[]
[]
[]
[]
[]
[]
[]
[]
[]
[]
[]
[]
[]
[]
[]
[]
[]
[]
[]
[]
[]
[]
[]
[]
[]
[]
[]
[]
[]
[]
[]
[]
[]
[]
[]
[]
[]
[]
[]
[]
[]
[]
[]
[]
[]
[]
[]
[]
[]
[]
[]
[]
[]
[]
[]
[]
[]
[]
[]
[]
[]
[]
[]
[]
[]
[]
[]
[]
[]
[]
[]
[]
[]
[]
[]
[]
[]
[]
[]
[]
[]
[]
[]
[]
[]
[]
[]
[]
[]
[]
[]
[]
[]
[]
[]
[]
[]
[]
[]
[]
[]
[]
[]
[]
[]
[]
[]
[]
[]
[]
[]
[]
[]
[]
[]
[]
[]
[]
[]
[]
[]
[]
[]
[]
[]
[]
[]
[]
[]
[]
[]
[]
[]
[]
[]
[]
[]
[]
[]
[]
[]
[]
[]
[]
[]
[]
[]
[]
[]
[]
[]
[]
[]
[]
[]
[]
[]
[]
[]
[]
[]
[]
[]
[]
[null,null,null,null,null,null,null,null,null,"地域環境保全（里山林）"]

{"sheet":"4ﾓﾆﾀﾘﾝｸﾞ結果報告書(様式第20号)","index":4,"n_rows":26,"n_cols":10,"rows_kept":26,"cut":false,"hidden":false,"merged":[[13,1,13,4],[5,1,5,7],[21,6,21,7],[18,6,18,7],[13,6,13,7],[12,6,12,7],[17,6,17,7],[10,6,10,7],[15,0,15,2],[15,6,15,7],[20,0,20,2],[20,6,20,7],[11,6,11,7],[21,1,21,4],[25,0,25,7],[24,0,24,7],[22,1,22,4],[16,6,16,7],[22,6,22,7],[16,1,16,4],[17,1,17,4],[18,1,18,4],[0,0,0,7],[1,0,1,7],[8,1,8,4],[11,1,11,4],[12,1,12,4],[8,6,8,7],[7,6,7,7],[7,0,7,2],[10,0,10,2],[3,1,3,7],[4,1,4,7]]}
["（別紙３　様式第20号）",null,null,null,null,null,null,null,null,"地域環境保全タイプ（里山林保全）"]
["令和6年度　モニタリング結果報告書",null,null,null,null,null,null,null,null,"地域環境保全タイプ（侵入竹除去・竹林整備）"]
["１　活動の目標等"]
["タイプ名："]
["目標："]
["モニタリング\n調査方法："]
[]
["２　活動実施前の標準地の状況　　（令和",null,null,null,"年度）",null,"写真"]
["標準地の\n状況を記載",null,null,null,null,null,"ダブルクリックで写真を選択"]
[]
["３　活動計画１年目の標準地の状況（令和",null,null,{"$f":"D8","v":0},"年度）",null,"写真"]
["標準地の\n状況を記載",null,null,null,null,null,"ダブルクリックで写真を選択"]
["目標達成度"]
["次年度に向けた\n改善策"]
[]
["４　活動計画２年目の標準地の状況（令和",null,null,{"$f":"D11+1","v":1},"年度）",null,"写真"]
["標準地の\n状況を記載",null,null,null,null,null,"ダブルクリックで写真を選択"]
["目標達成度"]
["次年度に向けた\n改善策"]
[]
["５　活動計画３年目の標準地の状況（令和",null,null,{"$f":"D16+1","v":2},"年度）",null,"写真"]
["標準地の\n状況を記載",null,null,null,null,null,"ダブルクリックで写真を選択"]
["目標達成度"]
[]
["（注１）目標の設定及び標準地の状況の記載については、別に定めるガイドラインを参　\n　　　　考とすること。"]
["（注２）活動（交付金交付）終了した活動組織においても、２年間（活動開始から４年\n　　　　目、５年目）は、「活動状況報告書」（別紙）により、当該年度末までに兵庫\n　　　　県地域協議会に提出すること。"]

{"sheet":"5実施状況整理票（様式21別紙１）","index":5,"n_rows":15,"n_cols":36,"rows_kept":15,"cut":false,"hidden":false,"merged":[[0,1,0,32],[3,1,7,1],[3,2,7,2],[3,3,7,3],[3,4,7,4],[3,5,7,5],[3,15,7,15],[3,16,7,16],[3,18,3,31],[3,32,7,32],[4,6,4,7],[4,8,7,8],[4,9,7,9],[3,17,7,17],[3,6,3,14],[1,1,1,32],[14,4,14,22],[14,2,14,3],[5,28,7,28],[4,26,4,31],[6,25,7,25],[5,21,5,23],[5,24,5,25],[5,26,7,26],[5,27,7,27],[5,6,7,6],[5,7,7,7],[5,18,7,18],[5,19,7,19],[5,20,7,20],[4,11,7,11],[4,12,7,12],[4,10,7,10],[4,13,6,14],[4,18,4,25],[5,29,7,29],[5,30,6,31],[6,21,7,21],[6,22,6,23],[6,24,7,24]]}
[null,"（別紙３　様式第21号　別紙１）"]
[null,"実施状況整理票"]
[]
[null,"都道府県名","地域協議会名","市町村名","対象森林所在市町村名","活動組織名","取組内容",null,null,null,null,null,null,null,null,"構成員(名)","地域外関係者の参加者数（延べ人数）","アドバイザー活用の有無\n（有の場合は下段の①～⑧に○）","交付金の使途（円）",null,null,null,null,null,null,null,null,null,null,null,null,null,"備考",null,null,"有"]
[null,null,null,null,null,null,"地域環境\n保全タイプ",null,"森林資源利用タイプ","森林機能強化タイプ","関係人口創出・維持タイプ（該当の有無）"," 間伐等(除伐、枝打ち含む)の実施面積","当該年度に長期にわたり手入れをされていなかったと考えられる里山林を整備した面積","資機材・施設の整備(円)",null,null,null,null,"収入",null,null,null,null,null,null,null,"支出",null,null,null,null,null,null,null,null,"無"]
[null,null,null,null,null,null,"里山林保全","侵入竹除去・竹林整備　",null,null,null,null,null,null,null,null,null,null,"合計","自己負担額","小計","国庫分",null,null,"地方分",null,"合計","人件費","委託料","その他","資機材・施設の整備"]
[null,null,null,null,null,null,null,null,null,null,null,null,null,null,null,null,null,null,null,null,null,"取組に対する交付金","資機材・施設の整備に対する交付金",null,"都道府県の支援額","市町村の支援額"]
[null,null,null,null,null,null,null,null,null,null,null,null,null,"交付率\n1/2以内","交付率\n1/3以内",null,null,null,null,null,null,null,"交付率\n1/2以内","交付率\n1/3以内",null,null,null,null,null,null,"交付率\n1/2以内","交付率\n1/3以内"]
[null,"兵庫県","ひょうご森林林業協同組合連合会",null,null,{"$f":"'実施状況報告書（様式第21号）'!G8","v":0},null,null,null,null,0,{"$f":"SUM(G9:I9)","v":0},null,{"$f":"'3金銭出納簿（様式第19号）'!Q42","v":0},{"$f":"'3金銭出納簿（様式第19号）'!Q43","v":0},null,null,null,{"$f":"SUM(T9:U9)","v":0},{"$f":"'3金銭出納簿（様式第19号）'!M43","v":0},{"$f":"SUM(V9:Z9)","v":0},null,{"$f":"'3金銭出納簿（様式第19号）'!R42","v":0},{"$f":"'3金銭出納簿（様式第19号）'!R43","v":0},null,null,{"$f":"SUM(AB9:AF9)","v":0},{"$f":"'3金銭出納簿（様式第19号）'!N41","v":0},{"$f":"'3金銭出納簿（様式第19号）'!O41","v":0},{"$f":"'3金銭出納簿（様式第19号）'!P41","v":0},{"$f":"'3金銭出納簿（様式第19号）'!Q42","v":0},{"$f":"'3金銭出納簿（様式第19号）'!Q43","v":0}]
[]
[null,"１：支出については自己負担額を含めた額を記載すること。"]
[null,"２：関係人口創出・維持タイプに該当する場合は「1」を記入すること。"]
[null,"３：アドバイザーを活用した場合は、①～⑧の指導・助言の内容を記入すること。（複数回活用した場合は複数記載）"]
[null,null,"①森林施業、②侵入竹の伐採・除去・利活用、③森林資源の活用、④森林生態、植生、⑤関係人口、⑥組織づくり、⑦安全管理、⑧その他"]
[null,null,"内容："]

{"sheet":"6効果ﾁｪｯｸｼｰﾄ(様式21号別紙２)","index":6,"n_rows":109,"n_cols":36,"rows_kept":109,"cut":false,"hidden":false,"merged":[[84,1,84,14],[84,15,84,18],[84,19,84,22],[84,23,84,26],[85,1,85,14],[85,15,85,18],[85,19,85,22],[85,23,85,26],[81,1,81,14],[81,15,81,18],[81,19,81,22],[81,23,81,26],[82,1,82,14],[82,19,82,22],[82,23,82,26],[83,1,83,14],[83,15,83,18],[83,19,83,22],[83,23,83,26],[80,1,80,14],[80,15,80,18],[80,19,80,22],[80,23,80,26],[65,2,65,27],[66,2,66,27],[67,2,67,27],[68,2,68,27],[69,2,69,27],[71,2,73,26],[50,1,53,13],[54,1,61,13],[64,1,64,27],[79,1,79,14],[79,15,79,18],[79,19,79,22],[79,23,79,26],[51,22,52,22],[60,15,61,17],[51,19,52,21],[54,15,56,17],[54,18,56,18],[54,19,56,21],[54,22,56,22],[54,23,56,23],[57,15,59,17],[57,18,59,18],[57,19,59,21],[57,22,59,22],[57,23,59,23],[38,1,42,1],[38,2,38,24],[39,2,39,24],[40,2,40,24],[41,2,41,24],[42,2,42,24],[43,1,43,27],[45,1,45,27],[48,1,49,27],[44,1,44,28],[38,25,38,27],[39,25,39,27],[40,25,40,27],[41,25,41,27],[42,25,42,27],[28,1,32,1],[28,2,28,24],[29,2,29,24],[30,2,30,24],[31,2,31,24],[32,2,32,24],[33,1,37,1],[33,2,33,24],[34,2,34,24],[35,2,35,24],[36,2,36,24],[37,2,37,24],[16,25,17,27],[18,25,18,27],[19,25,19,27],[20,25,20,27],[21,25,21,27],[22,25,22,27],[23,1,27,1],[23,2,23,24],[24,2,24,24],[25,2,25,24],[26,2,26,24],[27,2,27,24],[14,1,14,27],[1,1,1,27],[3,1,3,5],[3,6,3,21],[3,22,3,24],[3,25,3,26],[4,1,4,5],[4,6,4,8],[4,9,4,15],[4,16,4,18],[4,19,4,27],[5,1,5,5],[6,1,7,5],[8,1,8,5],[9,1,9,5],[9,6,9,27],[15,1,15,28],[33,25,33,27],[34,25,34,27],[35,25,35,27],[36,25,36,27],[37,25,37,27],[28,25,28,27],[29,25,29,27],[30,25,30,27],[31,25,31,27],[32,25,32,27],[23,25,23,27],[24,25,24,27],[25,25,25,27],[26,25,26,27],[27,25,27,27],[16,1,17,1],[16,2,17,24],[18,1,22,1],[18,2,18,24],[19,2,19,24],[20,2,20,24],[21,2,21,24],[22,2,22,24]]}
[null,"（別紙３　様式第21号　別紙２）"]
[null,"森林・山村多面的機能発揮に対する効果チェックシート"]
[null,"１．活動組織の概要"]
[null,"①活動組織名",null,null,null,null,{"$f":"'実施状況報告書（様式第21号）'!G8","v":0},null,null,null,null,null,null,null,null,null,null,null,null,null,null,null,"取得年数",null,null,null,null,"年"]
[null,"②主な対象森林\nの所在地",null,null,null,null,"都道\n府県",null,null,"兵庫県",null,null,null,null,null,null,"市区\n町村",null,null,{"$f":"'5実施状況整理票（様式21別紙１）'!D9","v":0},null,null,null,null,null,null,null,null,null,null,null,null,null,false]
[null,"③活動計画の取組年度",null,null,null,null,null,"　１年目",null,null,null,"   ２年目",null,null,null,null,"３年目",null,null,null,null,null,null,null,null,null,null,null,null,null,null,null,null,false,false]
[null,"④活動タイプ等\n（R6年度）",null,null,null,null,"　    活動推進費",null,null,null,null,null,"里山林保全",null,null,null,null,"竹林整備",null,null,null,null,"森林資源利用",null,null,null,null,null,null,null,null,null,null,false,false]
[null,null,null,null,null,null,"　    森林機能強化",null,null,null,null,null,null,"関係人口",null,null,null,null,"資機材購入",null,null,null,null,null,null,null,null,null,null,null,null,null,null,false,false]
[null,"⑤地域住民の比率",null,null,null,null,"　   90%以上",null,null,null,null,"75～90%",null,null,null,"50～75%",null,null,null,"25～50%",null,null,null,"25%未満",null,null,null,null,null,null,null,null,null,false,false]
[null,"⑥活動目標",null,null,null,null,null,null,null,null,null,null,null,null,null,null,null,null,null,null,null,null,null,null,null,null,null,null,null,null,null,null,null,false,false]
[null,"※③・④・⑤欄は、該当する□又は○にチェックを付けてください。",null,null,null,null,null,null,null,null,null,null,null,null,null,null,null,null,null,null,null,null,null,null,null,null,null,null,null,null,null,null,null,false,false]
[null,"※「地域住民」とは、活動対象地と大字単位で同じか隣接する場所に居住する方を指します。",null,null,null,null,null,null,null,null,null,null,null,null,null,null,null,null,null,null,null,null,null,null,null,null,null,null,null,null,null,null,null,false,false]
[]
[null,"２．活動の変化・成果の確認（※本交付金の取得前と比較の上でご回答ください。）",null,null,null,null,null,null,null,null,null,null,null,null,null,null,null,null,null,null,null,null,null,null,null,null,null,null,null,null,null,null,null,false,false]
[null,"※以下の項目について、実現ができていると思う場合には、右側の□にチェックを入れてください。"]
[null,"※チェック欄は、活動計画1年目の時は「1年間」、2年目の時は「2年間」、3年目の時は「3年間」の活動を通じた変化・効果を記載してください。"]
[null,"項目","効果",null,null,null,null,null,null,null,null,null,null,null,null,null,null,null,null,null,null,null,null,null,null,"チェック欄",null,null,null,null,null,null,null,false,false]
[null,null,null,null,null,null,null,null,null,null,null,null,null,null,null,null,null,null,null,null,null,null,null,null,null,null,null,null,null,null,null,null,null,false,false]
[null,"（横展開）\n活動の広がり","　活動組織の構成員数が増加した",null,null,null,null,null,null,null,null,null,null,null,null,null,null,null,null,null,null,null,null,null,null,null,null,null,null,null,null,null,null,false,false]
[null,null,"　幅広い年齢層が協力して活動を行った",null,null,null,null,null,null,null,null,null,null,null,null,null,null,null,null,null,null,null,null,null,null,null,null,null,null,null,null,null,null,false,false]
[null,null,"　新聞や雑誌、広報誌などで活動を紹介された",null,null,null,null,null,null,null,null,null,null,null,null,null,null,null,null,null,null,null,null,null,null,null,null,null,null,null,null,null,null,false,false]
[null,null,"　他団体（活動団体、企業、自治体等）との協力関係がうまれた",null,null,null,null,null,null,null,null,null,null,null,null,null,null,null,null,null,null,null,null,null,null,null,null,null,null,null,null,null,null,false,false]
[null,null,"　外部（異なる集落や都市）の住民も森林整備活動に参加した",null,null,null,null,null,null,null,null,null,null,null,null,null,null,null,null,null,null,null,null,null,null,null,null,null,null,null,null,null,null,false,false]
[null,"（自立性）\n活動の持続性","　構成員が森林整備のための技術や安全管理の資格を取得した",null,null,null,null,null,null,null,null,null,null,null,null,null,null,null,null,null,null,null,null,null,null,null,null,null,null,null,null,null,null,false,false]
[null,null,"　森林整備のための機材や道具を使用できる構成員数が増えた",null,null,null,null,null,null,null,null,null,null,null,null,null,null,null,null,null,null,null,null,null,null,null,null,null,null,null,null,null,null,false,false]
[null,null,"　森林整備のために利用可能な本交付金以外の資金が増えた",null,null,null,null,null,null,null,null,null,null,null,null,null,null,null,null,null,null,null,null,null,null,null,null,null,null,null,null,null,null,false,false]
[null,null,"　若い世代（40歳未満）が参加しており、長期的な活動が可能である",null,null,null,null,null,null,null,null,null,null,null,null,null,null,null,null,null,null,null,null,null,null,null,null,null,null,null,null,null,null,false,false]
[null,null,"　本交付金終了後に森林整備活動を継続できる見込みがある",null,null,null,null,null,null,null,null,null,null,null,null,null,null,null,null,null,null,null,null,null,null,null,null,null,null,null,null,null,null,true,false]
[null,"（景観）\n地域貢献","　対象森林が明るくなり、見通しが良くなった",null,null,null,null,null,null,null,null,null,null,null,null,null,null,null,null,null,null,null,null,null,null,null,null,null,null,null,null,null,null,false,false]
[null,null,"　活動組織の構成員以外から景観が良くなったと言われるようになった",null,null,null,null,null,null,null,null,null,null,null,null,null,null,null,null,null,null,null,null,null,null,null,null,null,null,null,null,null,null,false,false]
[null,null,"　対象森林や周辺で不法投棄されるゴミの量が減った／ゴミのない状態を維持している",null,null,null,null,null,null,null,null,null,null,null,null,null,null,null,null,null,null,null,null,null,null,null,null,null,null,null,null,null,null,false,false]
[null,null,"　対象森林が、観光資源としても利用できるようになった",null,null,null,null,null,null,null,null,null,null,null,null,null,null,null,null,null,null,null,null,null,null,null,null,null,null,null,null,null,null,false,false]
[null,null,"　在来種や歴史性を考慮した地域ならではの景観を守っている",null,null,null,null,null,null,null,null,null,null,null,null,null,null,null,null,null,null,null,null,null,null,null,null,null,null,null,null,null,null,false,false]
[null,"（文化・教育）\n地域貢献","　対象森林が、地域の憩いの場として活用されている",null,null,null,null,null,null,null,null,null,null,null,null,null,null,null,null,null,null,null,null,null,null,null,null,null,null,null,null,null,null,null,false]
[null,null,"　対象森林が、地域の子供たちの自然体験活動や学習・教育の場となっている",null,null,null,null,null,null,null,null,null,null,null,null,null,null,null,null,null,null,null,null,null,null,null,null,null,null,null,null,null,null,null,false]
[null,null,"　地域の幼稚園、保育園、小中学校のいずれかと協力関係にある",null,null,null,null,null,null,null,null,null,null,null,null,null,null,null,null,null,null,null,null,null,null,null,null,null,null,null,null,null,null,null,false]
[null,null,"　対象森林から得られた資源を伝統工芸品づくりに活用した",null,null,null,null,null,null,null,null,null,null,null,null,null,null,null,null,null,null,null,null,null,null,null,null,null,null,null,null,null,null,null,false]
[null,null,"　伝統文化の維持や郷土食づくりに貢献する活動を行った",null,null,null,null,null,null,null,null,null,null,null,null,null,null,null,null,null,null,null,null,null,null,null,null,null,null,null,null,null,null,null,false]
[null,"（その他）\n地域貢献","　鳥獣被害が軽減された（野生鳥獣の出没・侵入が減った）",null,null,null,null,null,null,null,null,null,null,null,null,null,null,null,null,null,null,null,null,null,null,null,null,null,null,null,null,null,null,null,false]
[null,null,"　地域の農業と連携した活動を行った",null,null,null,null,null,null,null,null,null,null,null,null,null,null,null,null,null,null,null,null,null,null,null,null,null,null,null,null,null,null,null,false]
[null,null,"　希少動植物の保護や生物多様性の保全に貢献している",null,null,null,null,null,null,null,null,null,null,null,null,null,null,null,null,null,null,null,null,null,null,null,null,null,null,null,null,null,null,null,false]
[null,null,"　土砂流出が軽減されるなど自然災害の防止に役立った",null,null,null,null,null,null,null,null,null,null,null,null,null,null,null,null,null,null,null,null,null,null,null,null,null,null,null,null,null,null,null,false]
[null,null,"　特産品の開発や地域の雇用創出など地域経済の活性化に貢献している",null,null,null,null,null,null,null,null,null,null,null,null,null,null,null,null,null,null,null,null,null,null,null,null,null,null,null,null,null,null,null,false]
[null,"※災害等が発生し、計画どおりに活動ができなかった場合には、その理由を特記事項にご記入ください。",null,null,null,null,null,null,null,null,null,null,null,null,null,null,null,null,null,null,null,null,null,null,null,null,null,null,null,null,null,null,null,false,false]
[]
[null,null,null,null,null,null,null,null,null,null,null,null,null,null,null,null,null,null,null,null,null,null,null,null,null,null,null,null,null,null,null,null,null,false,false]
[]
[null,"３．関係人口の創出について",null,null,null,null,null,null,null,null,null,null,null,null,null,null,null,null,null,null,null,null,null,null,null,null,null,null,null,null,null,null,null,false,false]
[null,"　今年度に実施した本交付金の活動における地域外からの活動参加者の「延べ人数」及び昨年度の参加者の「延べ人数」の比較について記載してください。"]
[]
[null,"　①今年度の地域外からの参加者数\n　　　（延べ人数を記載してください。）",null,null,null,null,null,null,null,null,null,null,null,null,null,null,null,null,null,null,null,null,null,null,null,null,null,null,null,null,null,null,null,null,false]
[null,null,null,null,null,null,null,null,null,null,null,null,null,null,null,null,null,null,null,{"$f":"'5実施状況整理票（様式21別紙１）'!Q9","v":0},null,null,"人",null,null,null,null,null,null,null,null,null,null,null,false]
[null,null,null,null,null,null,null,null,null,null,null,null,null,null,null,null,null,null,null,null,null,null,null,null,null,null,null,null,null,null,null,null,null,null,false]
[null,null,null,null,null,null,null,null,null,null,null,null,null,null,null,null,null,null,null,null,null,null,null,null,null,null,null,null,null,null,null,null,null,null,false]
[null,"\n\n　②昨年度の地域外からの参加者との比較\n　　（延べ人数で比較して、「増加した」か「減少した」\n　　　のどちらかに記載してださい。）\n",null,null,null,null,null,null,null,null,null,null,null,null,null," 増加した",null,null,"（",null,null,null,"人","）",null,null,null,null,null,null,null,null,null,null,false]
[null,null,null,null,null,null,null,null,null,null,null,null,null,null,null,null,null,null,null,null,null,null,null,null,null,null,null,null,null,null,null,null,null,null,false]
[null,null,null,null,null,null,null,null,null,null,null,null,null,null,null,null,null,null,null,null,null,null,null,null,null,null,null,null,null,null,null,null,null,null,false]
[null,null,null,null,null,null,null,null,null,null,null,null,null,null,null," 減少した",null,null,"（",null,null,null,"人","）",null,null,null,null,null,null,null,null,null,null,false]
[]
[]
[null,null,null,null,null,null,null,null,null,null,null,null,null,null,null," 変化なし",null,null,null,null,null,null,null,null,null,null,null,null,null,null,null,null,null,null,false,false]
[]
[]
[null,"■ 特筆事項（災害等の状況）",null,null,null,null,null,null,null,null,null,null,null,null,null,null,null,null,null,null,null,null,null,null,null,null,null,null,null,null,null,null,null,null,false,false]
[null,"　　自然災害等により、活動を計画どおりに行うことが困難な状況が生じた場合は、期待どおりの効果が得られ\n　ないことも想定されます。\n　　災害等が発生し計画どおりに活動ができなかった場合には、その理由を選択し、該当がなければその他に\n　簡単にご記入ください。",null,null,null,null,null,null,null,null,null,null,null,null,null,null,null,null,null,null,null,null,null,null,null,null,null,null,null,null,null,null,null,null,false,false]
[null,null,"災害等で活動区域が被害を受け、活動が行えなかった。",null,null,null,null,null,null,null,null,null,null,null,null,null,null,null,null,null,null,null,null,null,null,null,null,null,null,null,null,null,null,null,false,false]
[null,null,"災害等で活動区域までの道が被害を受け、活動が行えなかった。",null,null,null,null,null,null,null,null,null,null,null,null,null,null,null,null,null,null,null,null,null,null,null,null,null,null,null,null,null,null,null,false,false]
[null,null,"土地所有者との協定が締結できず活動を行えなかった。",null,null,null,null,null,null,null,null,null,null,null,null,null,null,null,null,null,null,null,null,null,null,null,null,null,null,null,null,null,null,null,false,false]
[null,null,"感染症等の感染防止ため活動を行えなかった。",null,null,null,null,null,null,null,null,null,null,null,null,null,null,null,null,null,null,null,null,null,null,null,null,null,null,null,null,null,null,null,false]
[null,null,"その他",null,null,null,null,null,null,null,null,null,null,null,null,null,null,null,null,null,null,null,null,null,null,null,null,null,null,null,null,null,null,null,false]
[null,null,null,null,null,null,null,null,null,null,null,null,null,null,null,null,null,null,null,null,null,null,null,null,null,null,null,null,null,null,null,null,null,null,false]
[null,null,null,null,null,null,null,null,null,null,null,null,null,null,null,null,null,null,null,null,null,null,null,null,null,null,null,null,null,null,null,null,null,null,false]
[null,null,null,null,null,null,null,null,null,null,null,null,null,null,null,null,null,null,null,null,null,null,null,null,null,null,null,null,null,null,null,null,null,null,false]
[null,null,null,null,null,null,null,null,null,null,null,null,null,null,null,null,null,null,null,null,null,null,null,null,null,null,null,null,null,null,null,null,null,null,false]
[]
[null,"　",null,null,null,null,null,null,null,null,null,null,null,null,null,null,null,null,null,null,null,null,null,null,null,null,null,null,null,null,null,null,null,null,false]
[]
[null,null,null,null,null,null,null,null,null,null,null,null,null,null,null,null,null,null,null,null,null,null,null,null,null,null,null,null,null,null,null,null,null,null,false]
[null,null,null,null,null,null,null,null,null,null,null,null,null,null,null,null,null,null,null,null,null,null,null,null,null,null,null,null,null,null,null,null,null,null,false]
[null,null,null,null,null,null,null,null,null,null,null,null,null,null,null,null,null,null,null,null,null,null,null,null,null,null,null,null,null,null,null,null,null,null,false]
[null,null,null,null,null,null,null,null,null,null,null,null,null,null,null,null,null,null,null,null,null,null,null,null,null,null,null,null,null,null,null,null,null,null,false]
[null,null,null,null,null,null,null,null,null,null,null,null,null,null,null,null,null,null,null,null,null,null,null,null,null,null,null,null,null,null,null,null,null,null,false]
[null,null,null,null,null,null,null,null,null,null,null,null,null,null,null,null,null,null,null,null,null,null,null,null,null,null,null,null,null,null,null,null,null,null,false]
[null,null,null,null,null,null,null,null,null,null,null,null,null,null,null,null,null,null,null,null,null,null,null,null,null,null,null,null,null,null,null,null,null,null,false]
[null,null,null,null,null,null,null,null,null,null,null,null,null,null,null,null,null,null,null,null,null,null,null,null,null,null,null,null,null,null,null,null,null,null,false]
[null,null,null,null,null,null,null,null,null,null,null,null,null,null,null,null,null,null,null,null,null,null,null,null,null,null,null,null,null,null,null,null,null,null,false]
[null,null,null,null,null,null,null,null,null,null,null,null,null,null,null,null,null,null,null,null,null,null,null,null,null,null,null,null,null,null,null,null,null,null,false]
[null,null,null,null,null,null,null,null,null,null,null,null,null,null,null,null,null,null,null,null,null,null,null,null,null,null,null,null,null,null,null,null,null,null,false]
[null,null,null,null,null,null,null,null,null,null,null,null,null,null,null,null,null,null,null,null,null,null,null,null,null,null,null,null,null,null,null,null,null,null,false]
[null,null,null,null,null,null,null,null,null,null,null,null,null,null,null,null,null,null,null,null,null,null,null,null,null,null,null,null,null,null,null,null,null,null,false]
[null,null,null,null,null,null,null,null,null,null,null,null,null,null,null,null,null,null,null,null,null,null,null,null,null,null,null,null,null,null,null,null,null,null,false]
[null,null,null,null,null,null,null,null,null,null,null,null,null,null,null,null,null,null,null,null,null,null,null,null,null,null,null,null,null,null,null,null,null,null,false]
[null,null,null,null,null,null,null,null,null,null,null,null,null,null,null,null,null,null,null,null,null,null,null,null,null,null,null,null,null,null,null,null,null,null,false]
[null,null,null,null,null,null,null,null,null,null,null,null,null,null,null,null,null,null,null,null,null,null,null,null,null,null,null,null,null,null,null,null,null,null,false]
[null,null,null,null,null,null,null,null,null,null,null,null,null,null,null,null,null,null,null,null,null,null,null,null,null,null,null,null,null,null,null,null,null,null,false]
[null,null,null,null,null,null,null,null,null,null,null,null,null,null,null,null,null,null,null,null,null,null,null,null,null,null,null,null,null,null,null,null,null,null,false]
[null,null,null,null,null,null,null,null,null,null,null,null,null,null,null,null,null,null,null,null,null,null,null,null,null,null,null,null,null,null,null,null,null,null,false]
[null,null,null,null,null,null,null,null,null,null,null,null,null,null,null,null,null,null,null,null,null,null,null,null,null,null,null,null,null,null,null,null,null,null,false]
[null,null,null,null,null,null,null,null,null,null,null,null,null,null,null,null,null,null,null,null,null,null,null,null,null,null,null,null,null,null,null,null,null,null,false]
[null,null,null,null,null,null,null,null,null,null,null,null,null,null,null,null,null,null,null,null,null,null,null,null,null,null,null,null,null,null,null,null,null,null,false]
[null,null,null,null,null,null,null,null,null,null,null,null,null,null,null,null,null,null,null,null,null,null,null,null,null,null,null,null,null,null,null,null,null,null,false]
[null,null,null,null,null,null,null,null,null,null,null,null,null,null,null,null,null,null,null,null,null,null,null,null,null,null,null,null,null,null,null,null,null,null,false]
[null,null,null,null,null,null,null,null,null,null,null,null,null,null,null,null,null,null,null,null,null,null,null,null,null,null,null,null,null,null,null,null,null,null,false]
[null,null,null,null,null,null,null,null,null,null,null,null,null,null,null,null,null,null,null,null,null,null,null,null,null,null,null,null,null,null,null,null,null,null,false]
[null,null,null,null,null,null,null,null,null,null,null,null,null,null,null,null,null,null,null,null,null,null,null,null,null,null,null,null,null,null,null,null,null,null,false]
[null,null,null,null,null,null,null,null,null,null,null,null,null,null,null,null,null,null,null,null,null,null,null,null,null,null,null,null,null,null,null,null,null,null,false]
[null,null,null,null,null,null,null,null,null,null,null,null,null,null,null,null,null,null,null,null,null,null,null,null,null,null,null,null,null,null,null,null,null,null,false]
[null,null,null,null,null,null,null,null,null,null,null,null,null,null,null,null,null,null,null,null,null,null,null,null,null,null,null,null,null,null,null,null,null,null,false]
[null,null,null,null,null,null,null,null,null,null,null,null,null,null,null,null,null,null,null,null,null,null,null,null,null,null,null,null,null,null,null,null,null,null,false]

{"sheet":"7関係人口創出維持タイプの参加者名簿","index":7,"n_rows":28,"n_cols":5,"rows_kept":28,"cut":false,"hidden":false,"merged":[[24,1,24,2],[25,1,25,2],[26,1,26,2],[27,1,27,2],[18,1,18,2],[19,1,19,2],[20,1,20,2],[21,1,21,2],[22,1,22,2],[23,1,23,2],[17,1,17,2],[6,1,6,2],[7,1,7,2],[8,1,8,2],[9,1,9,2],[10,1,10,2],[11,1,11,2],[12,1,12,2],[13,1,13,2],[14,1,14,2],[15,1,15,2],[16,1,16,2],[1,0,1,1],[2,1,2,2],[3,1,3,2],[4,1,4,2],[5,1,5,2]]}
["令和6年度　関係人口創出維持タイプの参加者名簿"]
["活動日：",null," 　　年　　月　　日",null,{"$f":"'実施状況報告書（様式第21号）'!G8","v":0}]
["N0.","氏名",null,"居住地\n（市町村まで）","備考"]
[1]
[2]
[3]
[4]
[5]
[6]
[7]
[8]
[9]
[10]
[11]
[12]
[13]
[14]
[15]
[16]
[17]
[18]
[19]
[20]
[21]
[22]
[23]
[24]
[25]

{"sheet":"8クロスコンプライアンスチェック(様式第13号)","index":8,"n_rows":20,"n_cols":9,"rows_kept":20,"cut":false,"hidden":false,"merged":[[1,0,1,8]]}
["（別紙３　様式第13号）"]
["環境負荷低減のクロスコンプライアンス チェックシート"]
[]
[null,"申請時\n（します）","（１）適正な施肥","報告時\n（しました）",null,null,"申請時\n（します）","（５）廃棄物の発生抑制、\n　　　適正な循環的な利用及び適正な処分","報告時\n（しました）"]
["①",null,"※種苗生産を行う場合（該当しない        ）\n肥料の適正な保管",null,null,"⑧",null,"廃棄物の削減に努め、適正に処理"]
["②",null,"※種苗生産を行う場合（該当しない        ）\n肥料の使用状況等の記録・保存に努める",null,null,"⑨",null,"未利用材の有効活用を検討"]
[]
[null,"申請時\n（します）","（２）適正な防除","報告時\n（しました）",null,null,"申請時\n（します）","（６）生物多様性への悪影響の防止","報告時\n（しました）"]
["③",null,"※農薬を使用する場合（該当しない        ）\n農薬の適正な使用・保管",null,null,"⑩",null,"生物多様性に配慮した事業実施（物資調達、施業等）に努める"]
["④",null,"※農薬を使用する場合（該当しない        ）\n農薬の使用状況等の記録・保存"]
[null,null,null,null,null,null,"申請時\n（します）","（７）環境関係法令の遵守等","報告時\n（しました）"]
[null,"申請時\n（します）","（３）エネルギーの節減","報告時\n（しました）",null,"⑪",null,"みどりの食料システム戦略の理解"]
["⑤",null,"林業機械や施設の電気・燃料の使用状況の記録・保存に努める",null,null,"⑫",null,"関係法令の遵守"]
["⑥",null,"省エネを意識し、不必要・非効率なエネルギー消費をしないように努める",null,null,"⑬",null,"林業機械等の装置・車両の適切な整備と管理の実施に努める"]
[null,null,null,null,null,"⑭",null,"正しい知識に基づく作業安全に努める"]
[null,"申請時\n（します）","（４）悪臭及び害虫の発生防止","報告時\n（しました）"]
["⑦",null,"悪臭・害虫の発生防止・低減に努める",null,null,null,null,{"$f":"\"活動組織名：\"&'実施状況報告書（様式第21号）'!G8","v":"活動組織名："}]
[]
["（注1）申請を行う際に本様式の「該当なし」欄又は「申請時」欄に☑を付し、報告の際は「報告時」欄に☑を付して提出してください。"]
["（注2）記載内容に「該当しない」場合には□にチェックしてください。この場合、当該項目の申請時・報告時のチェックは不要です。"]

{"sheet":"9活動記録総括表(参考様式第12号)","index":9,"n_rows":41,"n_cols":22,"rows_kept":41,"cut":false,"hidden":false,"merged":[[33,5,33,11],[34,5,34,11],[35,5,35,11],[36,5,36,11],[8,5,8,6],[28,5,28,11],[29,5,29,11],[30,5,30,11],[31,5,31,11],[32,5,32,11],[25,5,26,11],[10,5,10,17],[11,4,11,17],[25,16,25,17],[17,14,17,16],[18,15,19,15],[18,16,19,16],[20,4,21,6],[20,10,21,13],[18,4,19,14],[17,10,17,13],[35,18,35,19],[36,12,36,13],[36,14,36,15],[36,16,36,17],[36,18,36,19],[29,18,29,19],[30,18,30,19],[31,18,31,19],[32,18,32,19],[33,18,33,19],[29,16,29,17],[30,16,30,17],[31,16,31,17],[32,16,32,17],[33,16,33,17],[29,14,29,15],[30,14,30,15],[31,14,31,15],[32,14,32,15],[33,14,33,15],[29,12,29,13],[30,12,30,13],[31,12,31,13],[32,12,32,13],[25,18,25,19],[22,14,22,15],[22,16,22,17],[22,18,22,19],[33,12,33,13],[26,14,26,15],[26,16,26,17],[26,18,26,19],[28,12,28,13],[28,14,28,15],[28,16,28,17],[28,18,28,19],[25,14,25,15],[25,12,25,13],[26,12,26,13],[24,12,24,13],[23,14,23,15],[24,14,24,15],[17,7,17,8],[22,12,22,13],[23,16,23,17],[24,16,24,17],[14,18,14,19],[15,18,15,19],[16,18,16,19],[7,18,7,19],[8,18,8,19],[9,18,9,19],[10,18,11,19],[12,18,12,19],[23,12,23,13],[23,18,23,19],[24,18,24,19],[20,14,21,18],[20,7,21,9],[40,4,40,19],[7,1,15,1],[16,1,40,1],[10,2,12,2],[10,3,11,3],[20,3,21,3],[22,3,26,3],[27,3,36,3],[18,17,19,17],[18,19,19,19],[20,19,21,19],[38,4,38,19],[39,4,39,19],[37,4,37,19],[34,12,34,13],[34,14,34,15],[34,16,34,17],[34,18,34,19],[35,12,35,13],[35,14,35,15],[35,16,35,17],[17,2,17,3],[20,2,32,2],[17,4,17,6],[14,2,14,3],[14,4,14,17],[15,2,15,3],[16,2,16,3],[15,4,15,6],[16,4,16,6],[16,10,16,13],[16,7,16,8],[16,14,16,16],[2,1,2,19],[4,14,4,19],[6,2,6,3],[6,4,6,17],[6,18,6,19],[4,12,4,13],[5,9,5,13],[13,2,13,3],[13,4,13,17],[12,6,12,10],[12,11,12,12],[12,13,12,17],[7,2,7,3],[7,4,7,17],[8,2,8,3],[9,2,9,3],[9,4,9,17],[13,18,13,19],[4,7,4,11],[4,5,4,6]]}
[]
[null,null,"(参考様式第12号）",null,null,null,null,null,null,null,null,null,null,null,null,null,null,null,null,"提出先：兵庫県治山課　chisanka@pref.hyogo.lg.jp",null,"平成"]
[null,"令和6年度 森林山村多面的機能発揮対策交付金（活動記録総括表）",null,null,null,null,null,null,null,null,null,null,null,null,null,null,null,null,null,null,null,"令和"]
[]
[null,null,null,null,null,"記入者名：",null,null,null,null,null,null,"（TEL）："]
[null,null,null,null,null,null,null,null,null,"（記入年月日）　令和　",null,null,null,null,null,"年",null,"月",null,"日"]
[null,null,"項目",null,"回　　　答",null,null,null,null,null,null,null,null,null,null,null,null,null,"【情報公開】\n非公開＝×"]
[null,"基　　本　　情　　報","団体名",null,{"$f":"'実施状況報告書（様式第21号）'!G8","v":0}]
[null,null,"設立年月日",null,null,null,null,null,"年",null,"月",null,"日"]
[null,null,"代表者名（ふりがな）",null,null,null,null,null,null,null,null,null,null,null,null,null,null,null,"原則非公開"]
[null,null,"団体所在地（郵便等の送付先）","①住所（個人宅の場合は個人名も明記）","〒",null,null,null,null,null,null,null,null,null,null,null,null,null,"原則非公開"]
[]
[null,null,null,"②電話・FAX番号","電話：",null,null,null,null,null,null,"FAX：",null,null,null,null,null,null,"原則非公開"]
[null,null,"ＨＰアドレス"]
[null,null,"Ｅメールアドレス",null,null,null,null,null,null,null,null,null,null,null,null,null,null,null,"原則非公開"]
[null,null,"会費の金額",null,null,null,null,"円／年"]
[null,"令和６年度実績","会員及びリーダー数（年度末現在）",null,"会員数",null,null,null,null,"人","うち活動リーダー数",null,null,null,null,null,null,"人","会員平均年齢"]
[null,null,"活動日数及び参加人数",null,"活動日数",null,null,null,null,"日","活動参加延べ人数",null,null,null,null,null,null,"人",null,"歳"]
[null,null,"活動内容","①活動場所等",null,null,null,null,null,null,null,null,null,null,null,"（計",null,"（計　　カ所）"]
[null,null,null,"（所在地市町名）"]
[null,null,"※（様式第20号 別紙）実施状況整理票に記載の面積と\n本交付金以外の活動も合わせてご記入ください。","②森林の形態・面積","所有形態",null,null,null,null,null,"面積",null,null,null,null,null,null,null,null,"ha"]
[]
[null,null,null,"③作業実面積（活動地毎に記載）\n※作業重複面積を除く",null,"＊人工林…スギ・ヒノキの人工林",null,null,null,null,null,null,"活動場所\n（市町名）",null,"人工林＊(ha)",null,"里山林＊(ha)",null,"竹林(ha)"]
[null,null,null,null,null,"＊里山林…広葉樹林、雑木林、マツ林"]
[]
[null,null,null,null,null,"※「計」欄の面積が、下記④「計」以下になっているか確認してください。"]
[null,null,null,null,null,null,null,null,null,null,null,null,"実面積計",null,{"$f":"SUM(O24:P26)","v":0},null,{"$f":"SUM(Q24:R26)","v":0},null,{"$f":"SUM(S24:T26)","v":0}]
[null,null,null,"④作業延面積\n（活動地毎に記載）\n\n※③≦④"]
[null,null,null,null,null,"作業内容",null,null,null,null,null,null,"活動場所\n（市町名）",null,"人工林＊",null,"里山林＊",null,"竹林"]
[null,null,null,null,null,"ア．地拵え（ｈａ） 　 　 　　　 　"]
[null,null,null,null,null,"イ．植栽（ｈａ）"]
[null,null,null,null,null,"ウ．下刈り（ｈａ）"]
[null,null,null,null,null,"エ．除間伐（ｈａ）"]
[null,null,null,null,null,"オ．枝打ち（ｈａ）"]
[null,null,null,null,null,"カ．その他（ｈａ）（　　　　　　　　　　　）"]
[null,null,null,null,null,"延面積計（ｈａ）",null,null,null,null,null,null,null,null,{"$f":"SUM(O30:P35)","v":0},null,{"$f":"SUM(Q30:R35)","v":0},null,{"$f":"SUM(S30:T35)","v":0}]
[null,null,null,null,null,"キ．歩道整備（ｍ）"]
[null,null,null,"⑤持続的な取り組み、その他特色のある活動　　　　　　　　　　　　"]
[null,null,null,"⑥会員の確保と人材育成についての意見、取組"]
[null,null,null,"⑦表彰歴"]
[null,null,null,"⑧その他特記事項　　　　　　　　　　"]

{"sheet":"森林整備実績図","index":10,"n_rows":20,"n_cols":2,"rows_kept":20,"cut":false,"hidden":false,"merged":[[4,1,5,4],[7,1,9,4],[11,1,17,4],[19,1,25,4]]}
[]
[null,"森林整備実績図"]
[]
[null,"活動組織名："]
[null,"○○活動組織"]
[]
[null,"対象森林所在地："]
[null,"○○市○○町○○　1000-1"]
[]
[]
[]
[null,"令和６年度取組実績\n里山林：1.0ha①\n竹林：1.0ha②\n利用：0.8ha③\n強化：○ｍ\n\n求積方法：QGISによる求積"]
[]
[]
[]
[]
[]
[]
[]
[null,"協定の対象森林については、令和○年○月○日時点において森林経営計画及び森林施業計画が策定されていないこと及び同日以降において森林経営計画が樹立（予定含む）されていないことを、○○市○○課において確認済み。"]

{"sheet":"森林整備区域管理票１（写真撮影位置図）","index":11,"n_rows":3,"n_cols":2,"rows_kept":3,"cut":false,"hidden":false,"merged":[[2,1,3,1]]}
[null,"（参考様式第13号）"]
[null,"森林整備区域管理票１（写真撮影位置図）"]
[null,"ダブルクリックで画像を選択"]

{"sheet":"森林整備区域管理票２（現場の整備状況等）","index":12,"n_rows":31,"n_cols":15,"rows_kept":31,"cut":false,"hidden":false,"merged":[[20,5,20,7],[20,14,27,14],[21,5,21,6],[29,5,29,7],[29,14,36,14],[30,5,30,6],[2,5,2,7],[2,14,9,14],[3,5,3,6],[11,5,11,7],[11,14,18,14],[12,5,12,6]]}
[null,"森林整備区域管理票２（現場の整備状況等）"]
[]
[null,"写真番号：",null,null,null,null,null,null,null,null,null,null,null,null,"ダブルクリックで画像を選択"]
[null,"写真位置（",null,null,null,null,null,"）"]
[]
[]
[]
[]
[]
[]
[]
[null,"写真番号：",null,null,null,null,null,null,null,null,null,null,null,null,"ダブルクリックで画像を選択"]
[null,"写真位置（",null,null,null,null,null,"）"]
[]
[]
[]
[]
[]
[]
[]
[null,"写真番号：",null,null,null,null,null,null,null,null,null,null,null,null,"ダブルクリックで画像を選択"]
[null,"写真位置（",null,null,null,null,null,"）"]
[]
[]
[]
[]
[]
[]
[]
[null,"写真番号：",null,null,null,null,null,null,null,null,null,null,null,null,"ダブルクリックで画像を選択"]
[null,"写真位置（",null,null,null,null,null,"）"]